Cogmind - Beta 15 @@@ ROGUE MODE // 2025.07.06 @ 20:32:48 Player: f3-rnm Result: Destroyed by Executioner with Helical Railgun Performance ------------- Evolutions (9) 4500 Regions Visited (26) 5200 Robots Destroyed (346) 1730 Value Destroyed (19311) 19311 Prototype IDs (56) 1120 Alien Tech Used (2) 400 Bonus (18843) 18843 TOTAL SCORE: 51104 Bonus ------- Triggered High Security 1000 High Alert Combat Kills 8836 Follower Combat Kills 3948 Entered Garrisons 400 Used RIF Installer 500 Network Hubs Disabled 200 Registered with UFD 300 Met Optimus in HQ 500 Met Zhirov 300 MAIN.C Attacked Warlord 500 Warlord Defense Kills 1930 Built Enhanced Grunts 300 A7 Reached Mainframe 300 Met R17 at Cetus 500 Met R17 at Research 2000 Scanned by Researcher 500 Friendly Fire -3171 Cogmind --------- Core Integrity 0/1600 Matter 106/300 Energy 45/100 System Corruption 39% Temperature Cool (0) Movement Core (50) Location -1/Command Parts ------- > --- POWER (3) -------- (None) > --- PROPULSION (2) --- (None) > --- UTILITY (15) ----- Experimental Core Analyzer > --- WEAPON (5) ------- (None) > --- INVENTORY (5) ---- Advanced Energy Well (500) Experimental Energy Well (600) Dimensional Node Initializer Improved Remote Datajack Multitool Peak State ------------ > --- POWER ------------ Particle Reactor Vortex Chain Reactor > --- PROPULSION ------- Overtuned Huge Scrapsphere > --- UTILITY ---------- Scrap Suit Advanced Cooling System Advanced Coolant Injector High-capacity Storage Unit Spectral Analyzer Experimental Targeting Computer Experimental Core Analyzer Advanced Weapon Cycler SHELL Armor Experimental Focal Shield AEGIS Remote Shield System Mapper > --- WEAPON ----------- Overtuned Quantum Rifle Cooled Nova Cannon Overtuned Railgun Overtuned Railgun Linear Accelerator > --- INVENTORY -------- Light Antimatter Reactor Scrap Suit Advanced Energy Well Experimental Energy Well Improved Matter Compressor Precision Energy Filter Improved Transmission Jammer Experimental Shield Generator Relay Coupler [NC] Mapping Drone Bay Swarm Drone Bay Dimensional Node Initializer Gamma Bomb Array Tiamat Missile Launcher Improved Remote Datajack CPS Tube Multitool [Rating: 210] Favorites ----------- Power Quantum Reactor Engine Ion Engine Power Core Neutrino Core Reactor Quantum Reactor Propulsion Overtuned Huge Scrapsphere Treads Light Treads Wheel Overtuned Huge Scrapsphere Utility High-capacity Storage Unit Device Scrap Suit Storage High-capacity Storage Unit Processor Experimental Targeting Computer Hackware Improved Hacking Suite Protection Centrium Medium Armor Plating Weapon Overtuned Coil Gun Energy Gun Pulse Rifle Energy Cannon Cooled Nova Cannon Ballistic Gun Overtuned Coil Gun Ballistic Cannon Antimatter Cannon Launcher Tiamat Missile Launcher Special Weapon Plasma Cutter Impact Weapon Heavy Flail Build | -11 -10 -10 -9 -6 -6 -6 -6 -6 -5 -5 -5 -5 -4 -4 -4 -4 -4 -3 -3 -3 -2 -2 -2 -2 -1 -1 ------- Run | Yrd Mat Sub Scr Fac Ext Cet Arc Hub Fac Upp Upp Zhi Pro Fac Upp Upp War Pro Res Tes Res Gar Res Gar Acc Com Slots Evolved 18 | . . . . 8 . . . . 2 . . . . 2 . . . . 2 . 2 . . . 2 . Power 2 | . . . . . . . . . 1 . . . . . . . . . . . 1 . . . . . Propulsion . | . . . . . . . . . . . . . . . . . . . . . . . . . . . Utility 13 | . . . . 7 . . . . 1 . . . . 2 . . . . 1 . 1 . . . 1 . Weapon 3 | . . . . 1 . . . . . . . . . . . . . . 1 . . . . . 1 . Parts Attached 186 | 6 2 3 11 18 12 14 3 2 10 2 . 5 2 15 4 . 10 . 8 12 3 8 . 3 5 28 Power 21 | 1 . 1 1 1 1 2 . . 1 . . 1 . 1 . . 2 . . . . 1 . . 1 7 Engine 4 | 1 . 1 1 . . . . . . . . . . . . . . . . . . . . . . 1 Core 2 | . . . . 1 . . . . . . . . . 1 . . . . . . . . . . . . Reactor 15 | . . . . . 1 2 . . 1 . . 1 . . . . 2 . . . . 1 . . 1 6 Propulsion 11 | 2 . 1 2 2 1 2 . . 1 . . . . . . . . . . . . . . . . . Treads 7 | 2 . 1 2 . . 2 . . . . . . . . . . . . . . . . . . . . Leg . | . . . . . . . . . . . . . . . . . . . . . . . . . . . Wheel 4 | . . . . 2 1 . . . 1 . . . . . . . . . . . . . . . . . Hover . | . . . . . . . . . . . . . . . . . . . . . . . . . . . Flight . | . . . . . . . . . . . . . . . . . . . . . . . . . . . Utility 94 | 1 2 . 3 8 5 6 2 . 6 1 . 4 2 9 3 . 6 . 5 10 1 2 . 2 2 14 Device 60 | . 1 . 2 5 3 4 1 . 3 1 . . 1 6 2 . 1 . 5 6 1 2 . 2 2 12 Storage 9 | 1 1 . 1 1 . . . . 1 . . 2 . . . . . . . 2 . . . . . . Processor 8 | . . . . . . 1 . . 1 . . . . 1 1 . 3 . . . . . . . . 1 Hackware 5 | . . . . 1 . . 1 . 1 . . . . 1 . . 1 . . . . . . . . . Protection 12 | . . . . 1 2 1 . . . . . 2 1 1 . . 1 . . 2 . . . . . 1 Artifact . | . . . . . . . . . . . . . . . . . . . . . . . . . . . Weapon 60 | 2 . 1 5 7 5 4 1 2 2 1 . . . 5 1 . 2 . 3 2 2 5 . 1 2 7 Energy Gun 14 | . . . 2 2 2 1 1 . 2 1 . . . 1 . . . . . . . 1 . . . 1 Energy Cannon 2 | . . . . . . . . . . . . . . . . . 1 . . 1 . . . . . . Ballistic Gun 22 | 2 . . . 1 3 2 . . . . . . . 4 1 . . . 1 1 . 2 . . 1 4 Ballistic Cannon 5 | . . . . 2 . . . . . . . . . . . . . . . . . 1 . . 1 1 Launcher 8 | . . 1 1 . . . . 2 . . . . . . . . . . 1 . 1 1 . 1 . . Special Weapon 9 | . . . 2 2 . 1 . . . . . . . . . . 1 . 1 . 1 . . . . 1 Impact Weapon . | . . . . . . . . . . . . . . . . . . . . . . . . . . . Slashing Weapon . | . . . . . . . . . . . . . . . . . . . . . . . . . . . Piercing Weapon . | . . . . . . . . . . . . . . . . . . . . . . . . . . . Special Melee Weapon . | . . . . . . . . . . . . . . . . . . . . . . . . . . . Unidentified Prototypes 41 | . . . . 2 . 4 . 2 . . . 5 1 . . . 7 . 2 9 2 3 . . 1 3 Corrupted Parts 11 | . . . . . . 1 . . 4 1 . . . 3 . . . . . . . . . . . 2 System Corruption 76 | . . . . . . 2 . . 18 9 . . . 35 . . . . . . . . . . . 12 Parts Lost 66 | . . 3 . 2 . 1 . . . 1 2 . 3 8 1 1 . . . . . 6 . . 5 33 Power 15 | . . 1 . 1 . . . . . . 1 . . 2 . 1 . . . . . 1 . . 3 5 Propulsion 2 | . . 1 . . . . . . . . . . . . . . . . . . . . . . . 1 Utility 24 | . . 1 . 1 . . . . . . . . 1 3 1 . . . . . . 1 . . 1 15 Weapon 25 | . . . . . . 1 . . . 1 1 . 2 3 . . . . . . . 4 . . 1 12 Highest Loss Streak 28 | . . 2 . 1 . 1 . . . 1 1 . 3 5 1 1 . . . . . 3 . . 4 28 To Critical Strikes 4 | . . . . . . . . . . . . . . 2 . . . . . . . 1 . . . 1 Average Backups 18 | 1 5 9 21 17 17 18 18 18 18 18 17 18 18 18 18 19 18 19 18 18 17 17 18 17 17 17 Power 1 | . 1 . . 1 1 1 2 2 1 1 . . 1 1 2 2 1 1 1 1 . . 1 1 . . Propulsion 1 | . 2 5 4 . . 1 1 1 . . . . . . . . . . . . . . . . . . Utility 8 | . . . 9 6 9 8 8 9 9 10 10 10 11 9 6 7 8 9 9 8 8 9 11 10 9 9 Weapon 3 | . 1 3 4 3 3 4 4 4 4 3 2 3 2 3 5 5 4 4 3 4 5 3 2 2 2 4 Tool/Special . | . . . . . . . . . . . . . . . . . . . . . . . . . . . Unused Backups 36 | . . . 6 6 2 2 1 2 . 1 . 1 1 2 . 1 1 . 2 1 . 1 . . . 6 Power 3 | . . . . . . 1 . . . . . . . . . . 1 . . . . . . . . 1 Propulsion 3 | . . . . 3 . . . . . . . . . . . . . . . . . . . . . . Utility 22 | . . . 3 3 1 1 1 1 . 1 . 1 1 2 . . . . 2 1 . 1 . . . 3 Weapon 6 | . . . 3 . 1 . . 1 . . . . . . . . . . . . . . . . . 1 Tool/Special 2 | . . . . . . . . . . . . . . . . 1 . . . . . . . . . 1 Average Slot Usage (%) 81 | . 95 86 72 91 90 86 86 85 83 88 87 75 88 85 88 88 87 84 84 78 76 77 78 77 79 77 Engine 3 | . 14 14 13 3 . . . . . . . . . . . . . . . . . . . . . . Reactor 4 | . . . . . 2 6 6 6 7 11 10 11 11 6 5 5 7 5 4 4 7 7 8 8 7 9 Treads 8 | . 28 27 26 3 . 5 6 6 3 . . . . . . . . . . . . . . . . . Wheel 3 | . . . . 9 13 1 . . 1 5 5 5 5 5 5 5 5 5 4 4 4 4 4 4 4 3 Device 18 | . 9 1 . 32 30 29 33 33 28 29 29 29 25 25 25 26 21 21 27 21 20 21 21 20 24 21 Storage 7 | . 14 14 13 6 6 6 6 6 5 5 5 5 5 5 5 5 5 5 4 4 4 4 4 4 4 3 Processor 6 | . . . . . . . . . 3 5 5 5 5 6 11 15 15 15 14 14 13 13 13 13 12 11 Hackware 3 | . . . . 5 6 6 6 6 6 5 5 5 5 9 9 5 5 5 4 4 4 4 4 4 4 2 Protection 3 | . . . . 5 6 9 5 6 5 5 5 4 8 7 5 5 9 10 4 4 4 4 4 4 4 3 Energy Gun 5 | . . . 8 13 4 2 4 6 6 16 13 . 8 6 . . . . . . . 2 4 4 4 5 Ballistic Gun 11 | . 28 27 9 3 12 16 14 12 4 . . . . 6 15 14 14 15 18 18 16 10 7 7 8 9 Peak Build Rating 210 | 6 10 10 22 60 62 91 94 95 107 106 104 103 107 115 112 112 136 136 157 177 189 196 195 195 210 202 Average Rating 96 | 4 8 7 13 52 59 85 92 93 100 104 102 89 103 107 111 111 118 136 152 167 181 191 194 194 203 190 On Entrance 104 | . 6 10 8 22 60 62 91 94 94 104 103 103 103 104 111 111 106 136 136 157 171 184 189 195 195 177 Naked Turns 190 | . . . 190 . . . . . . . . . . . . . . . . . . . . . . . Heaviest Build 215 | 13 19 19 215 77 87 94 88 88 115 115 113 109 113 118 109 106 121 118 128 149 153 177 177 183 191 175 Greatest Support 80 | 20 40 43 43 43 20 80 80 80 80 20 20 20 20 20 20 20 20 20 20 20 20 20 20 20 20 20 Greatest Overweight (x) 9 | 4 4 . 4 8 5 5 1 1 5 5 5 5 5 5 5 5 6 5 6 7 7 8 8 9 9 8 Average Overweight (x) 4 | 2 . . 2 2 4 1 1 . 2 5 4 4 5 4 4 4 4 5 5 5 6 7 8 8 8 7 Largest Inventory Capacity 35 | 8 10 10 35 35 20 20 20 20 20 20 20 20 20 20 20 20 20 20 20 20 20 20 20 20 20 20 Average Capacity 22 | 7 8 10 33 20 20 20 20 20 20 20 20 20 20 20 20 20 20 20 20 20 20 20 20 20 20 19 Most Carried 31 | 3 10 10 31 28 20 20 20 20 20 20 19 20 20 20 20 20 20 20 20 20 20 20 20 20 20 20 Average Carried 19 | 1 5 9 21 19 19 19 19 19 19 19 18 19 19 19 19 19 19 20 19 19 18 18 20 19 19 18 Final Capacity 35 | 8 10 10 35 20 20 20 20 20 20 20 20 20 20 20 20 20 20 20 20 20 20 20 20 20 20 5 Final Carried 30 | 3 10 10 30 20 20 20 20 20 20 19 19 20 20 20 20 20 20 20 20 20 19 20 20 20 17 5 Class Distribution -------------------- 40% | Scavenger-Scrapper 22% | Hauler-Mutant 9% | Scavenger-Gunner 7% | Commander-Tank 7% | Scavenger-Tank 6% | Mutant 4% | Commander-Scrapper Dominant Class ---------------- Mutant | -10/Materials Mutant | -10/Subcaves Hauler-Mutant | -9/Scraptown Commander-Tank | -6/Factory Commander-Scrapper | -6/Extension Commander-Tank | -6/Cetus Commander-Tank | -6/Archives Scavenger-Tank | -6/Hub_04(d) Scavenger-Tank | -5/Factory Scavenger-Scrapper | -5/Upper Caves Scavenger-Scrapper | -5/Upper Caves Scavenger-Mutant | -5/Zhirov Scavenger-Scrapper | -4/Proximity Caves Scavenger-Tank | -4/Factory Scavenger-Scrapper | -4/Upper Caves Scavenger-Scrapper | -4/Upper Caves Scavenger-Scrapper | -4/Warlord Scavenger-Scrapper | -3/Proximity Caves Scavenger-Scrapper | -3/Research Scavenger-Scrapper | -3/Testing Scavenger-Scrapper | -2/Research Scavenger-Scrapper | -2/Garrison Scavenger-Scrapper | -2/Research Scavenger-Scrapper | -2/Garrison Scavenger-Gunner | -1/Access Scavenger-Gunner | -1/Command Resources | -11 -10 -10 -9 -6 -6 -6 -6 -6 -5 -5 -5 -5 -4 -4 -4 -4 -4 -3 -3 -3 -2 -2 -2 -2 -1 -1 ----------- Run | Yrd Mat Sub Scr Fac Ext Cet Arc Hub Fac Upp Upp Zhi Pro Fac Upp Upp War Pro Res Tes Res Gar Res Gar Acc Com Matter Collected 15822 | 161 45 126 345 274 962 240 602 106 322 29 248 150 178 1126 459 380 610 151 874 1562 794 2026 . 879 701 2472 Remotely . | . . . . . . . . . . . . . . . . . . . . . . . . . . . Salvage Created 20000 | . 96 78 . 286 1130 212 187 204 360 74 358 . 473 1935 390 179 797 316 489 1911 1504 2388 88 1944 1659 2942 Parts 837 | . 5 4 . 16 34 8 16 7 12 4 20 . 22 81 13 8 34 9 25 110 69 91 4 63 55 127 Haulers Intercepted 5 | . . . . . . . . 1 . . . . 1 . . . . . 1 . 1 . . . 1 . Recyclers Shooed 3 | . . . . . 1 . . 1 1 . . . . . . . . . . . . . . . . . Parts Field Recycled . | . . . . . . . . . . . . . . . . . . . . . . . . . . . Retrieved Matter . | . . . . . . . . . . . . . . . . . . . . . . . . . . . Parts Self-Destructed 74 | . . 8 . . . . . . . 4 14 . 20 . 12 7 . 9 . . . . . . . . Prevented 7 | . . . . . . . . . . 2 . . 5 . . . . . . . . . . . . . Kills | -11 -10 -10 -9 -6 -6 -6 -6 -6 -5 -5 -5 -5 -4 -4 -4 -4 -4 -3 -3 -3 -2 -2 -2 -2 -1 -1 ------- Run | Yrd Mat Sub Scr Fac Ext Cet Arc Hub Fac Upp Upp Zhi Pro Fac Upp Upp War Pro Res Tes Res Gar Res Gar Acc Com Combat Hostiles Destroyed 291 | . 2 2 . 5 15 1 . . 7 1 14 . 10 27 9 8 17 4 2 23 16 37 1 32 25 33 Guns 211 | . 2 2 . 3 15 1 . . 4 1 2 . 8 22 9 5 13 4 2 23 16 33 1 15 14 16 Cannons 24 | . . . . . . . . . 3 . . . 2 . . . . . . . . 4 . 5 4 6 AOE 44 | . . . . 2 . . . . . . 10 . . 2 . 3 4 . . . . . . 11 6 6 Classes Destroyed 28 | . 1 1 . 4 4 1 . 1 1 1 1 . . . . . 2 . 1 3 2 1 . 1 1 2 Worker 19 | . . . . . . . . . 1 . . . . 3 . . . . 3 3 . . . . 1 8 Builder 6 | . . . . . . . . . . . . . . . . . . . 1 3 1 . . . 1 . Tunneler 1 | . . . . . . . . . . . . . . . . . . . . . . . . . 1 . Hauler 5 | . . . . . . . . 1 . . . . 1 . . . . . 1 . 1 . . . 1 . Recycler 7 | . . . . . 1 . . 1 . . . . . . . . . . 1 1 . . . . 1 2 Carrier 1 | . . . . . . . . . . . . . . . . . . . . . 1 . . . . . Operator 6 | . . . . . 1 . 4 . . . . . . . . . . . . . 1 . . . . . Drone 8 | . . . . . . . . . . . . . . . . . . . . . . 8 . . . . Watcher 6 | . . . . . 1 . . . . . . . . . . . . . . 2 1 1 . . . 1 Swarmer 75 | . . . . . . . . . . . 10 . 5 . 5 7 6 . . 8 5 8 . 11 5 5 Cutter 3 | . . . . . . . . . . . . . . . . . . . . . . . . 3 . . Saboteur 1 | . . . . . . . . . . . . . . . . . . . . . 1 . . . . . Grunt 97 | . 2 . . 1 5 . . . 4 . 1 . 5 15 2 . 7 1 . 11 4 7 1 4 13 14 Brawler 6 | . . . . . 1 . . . . . . . . 2 . . 1 . . . 1 . . . . 1 Duelist 7 | . . . . . . . . . . . . . . 1 . . . 2 . . 2 . . . 1 1 Protector 1 | . . . . . . . . . . . . . . . . . . . . . . . . . . 1 Researcher 3 | . . . . . . . . . . . . . . . . . . . . 3 . . . . . . Sentry 28 | . . . . 1 9 . . . 1 . 1 . . 4 1 1 . 1 . . . 3 . 4 . 2 Demolisher 2 | . . . . . . . . . . . . . . . . . 2 . . . . . . . . . Specialist 3 | . . . . . . . . . . . . . . . . . . . . 3 . . . . . . Hunter 20 | . . . . 2 . . . . 1 . 2 . . . . . . . 2 . 2 6 . 4 . 1 Programmer 23 | . . . . 1 . . . . 1 . . . . 5 1 . . . . . 1 . . 3 6 5 Q-Series 5 | . . . . . . . . . . . . . . . . . . . . 1 . 4 . . . . Behemoth 5 | . . . . . . . . . . 1 . . . . . . . . . . . 1 . 3 . . Cetus Guard 1 | . . . . . . 1 . . . . . . . . . . . . . . . . . . . . M Guard 1 | . . . . . . . . . . . . . . . . . . . . . . . . . . 1 Combat Programmer 1 | . . . . . . . . . . . . . . . . . . . . . . . . . . 1 Executioner 1 | . . . . . . . . . . . . . . . . . 1 . . . . . . . . . Alpha 7 1 | . . . . . . . . . . . . . . . . . . . . . . . . . . 1 Subdweller 2 | . . 2 . . . . . . . . . . . . . . . . . . . . . . . . Scrapoid 5 | . . . . 1 . . . . . . . . . . . . . . . . 2 . . . . 2 Thug 2 | . . . . . . . 1 . . . . . . . . . 1 . . . . . . . . . Butcher 1 | . . . . . . 1 . . . . . . . . . . . . . . . . . . . . Guerrilla 1 | . . . . . . 1 . . . . . . . . . . . . . . . . . . . . Best Kill Streak 12 | . 1 2 . 2 4 1 2 2 4 1 5 . 5 12 4 4 12 3 3 7 7 10 1 8 10 6 Combat Bots Only 12 | . 1 2 . 2 4 1 . . 3 1 5 . 4 12 4 4 12 3 1 7 5 10 1 8 10 5 Max Kills in Single Turn 7 | . 1 1 . 3 1 1 1 1 2 1 4 . 1 2 1 2 4 1 1 3 3 3 1 7 2 4 Gunslinging 1 | . . . . . . . . . . . . . . . . . 1 . . 1 1 . . . 1 1 Exploded 7 | . . . . 2 . . . . . . 4 . . 2 . 2 4 . . . . . . 7 2 4 Melee . | . . . . . . . . . . . . . . . . . . . . . . . . . . . Uniques/NPCs Destroyed . | . . . . . . . . . . . . . . . . . . . . . . . . . . . Combat | -11 -10 -10 -9 -6 -6 -6 -6 -6 -5 -5 -5 -5 -4 -4 -4 -4 -4 -3 -3 -3 -2 -2 -2 -2 -1 -1 -------- Run | Yrd Mat Sub Scr Fac Ext Cet Arc Hub Fac Upp Upp Zhi Pro Fac Upp Upp War Pro Res Tes Res Gar Res Gar Acc Com Hostile Shots Fired 1918 | . 14 27 . 62 166 36 4 4 36 21 39 . 57 127 69 45 30 5 29 94 28 194 61 96 198 476 Missed 579 | . 3 7 . 26 68 11 2 3 11 4 10 . 14 38 17 15 16 2 10 32 9 50 23 28 52 128 Intercepted 32 | . . . . . . . . . . . . . . . . . . . . . . . . . . 32 Hits 1339 | . 11 20 . 36 98 25 2 1 25 17 29 . 43 89 52 30 14 3 19 62 19 144 38 68 146 348 Melee 11 | . . . . . . . . . . . . . . 1 . . . . . . . . . 2 . 8 Projectile 1328 | . 11 20 . 36 98 25 2 1 25 17 29 . 43 88 52 30 14 3 19 62 19 144 38 66 146 340 AOE 24 | . . . . . . . . . . . . . . . . . . . . 11 . 4 . 1 . 8 Critical Strikes 62 | . . 1 . . 1 4 . . 2 1 . . 1 9 . . . . . 1 1 4 . 3 9 25 Part Disruptions 5 | . . . . . . . . . . . . . . . . . 2 . . 1 . . . . 1 1 Damage Taken 21472 | . 145 462 . 418 611 699 56 18 441 329 586 . 802 1460 500 376 183 30 155 827 327 2124 419 853 1960 7691 Core 2628 | . 13 74 . 12 58 87 . . 20 54 16 . 43 123 97 94 15 . 22 43 17 180 50 . 84 1526 Absorbed by Shields 7977 | . . . . . 349 123 . . . . . . . 637 486 281 196 32 148 319 136 1668 402 824 831 1545 Redirected to Shielding 220 | . . . . . . . . . . . . . 146 74 . . . . . . . . . . . . Ignored by Resistances 686 | . . . . . . . . . . . . . . . . . . . 145 16 . . . . 328 197 Regen/Repaired (Parts) 5449 | . . . 107 77 126 16 6 . 10 . . . 10 30 . 10 144 . 56 401 268 917 72 775 387 2037 Core Remaining (%) 82 | 100 . . 65 . . . . 81 . . . . 86 . . . . 71 . 95 . . . 77 . . Volleys Fired 905 | . 16 16 . 19 70 37 33 7 20 8 14 . 34 80 32 24 34 12 26 65 32 103 3 55 53 112 Largest 5 | . 2 2 . 3 3 3 3 3 3 3 3 . 3 3 3 3 3 3 4 4 4 4 4 4 5 5 Hottest 395 | . 40 40 . 191 240 110 95 145 213 280 280 . 213 208 97 96 96 96 128 146 146 350 250 250 280 395 Shots Fired 2635 | . 32 31 . 40 159 75 69 21 56 15 26 . 83 190 86 54 94 36 89 226 113 349 9 188 163 431 Gun 2325 | . 32 30 . 35 137 69 69 21 36 10 22 . 51 165 86 48 90 36 84 226 111 328 6 139 114 380 Cannon 221 | . . . . 1 . . . . 20 5 . . 31 18 . 1 1 . 3 . . 21 3 41 39 37 Launcher 45 | . . 1 . 1 . . . . . . 4 . . 7 . 5 2 . . . . . . 7 10 8 Special 44 | . . . . 3 22 6 . . . . . . 1 . . . 1 . 2 . 2 . . 1 . 6 Kinetic 1995 | . 32 30 . 11 103 68 69 14 28 5 . . 31 133 86 49 90 36 87 226 111 303 4 92 83 304 Thermal 555 | . . . . 25 34 5 . 7 28 10 22 . 52 50 . . . . . . . 46 5 88 70 113 Explosive 33 | . . 1 . 1 . . . . . . 4 . . . . 5 2 . . . . . . 6 10 4 Electromagnetic 12 | . . . . . . . . . . . . . . 7 . . . . . . . . . 1 . 4 Entropic 1 | . . . . . . . . . . . . . . . . . 1 . . . . . . . . . Robot Hit Streak 26 | . 6 14 . 4 26 11 7 14 11 5 5 . 9 14 9 6 19 12 8 9 6 22 4 7 14 17 Robot Miss Streak 10 | . 2 2 . 4 9 4 5 1 3 1 7 . 10 4 3 5 2 3 7 3 7 9 2 4 4 4 Penetration Max 2 | . . . . . . 1 . 1 . . . . . 1 1 . 1 1 2 2 1 2 1 1 2 2 Secondary Targets 43 | . . 1 . . 6 1 . . . . . . 1 1 1 . 3 2 . 6 4 6 . 1 3 7 Max Gunslinging Chain 2 | . . 1 . . 1 1 . . . . . . 1 1 1 . 1 1 . 1 1 1 . 1 2 1 Shots Hit Robots 1505 | . 18 26 . 27 117 50 35 18 36 5 18 . 30 93 44 18 64 23 34 96 60 216 5 94 87 291 Core Hits 886 | . 8 5 . 22 53 26 21 8 23 6 21 . 21 63 13 11 34 12 17 70 45 111 3 76 60 157 Critical Kills 64 | . . 1 . . 1 1 2 1 . . . . . 1 2 1 3 . . 15 15 12 1 2 3 3 Critical Parts Destroyed 91 | . . . . . 2 2 2 1 . . . . . 2 4 1 5 2 2 15 7 31 . 5 2 8 Critical Strikes 202 | . . 1 . 1 6 3 4 2 2 1 2 . . 6 7 2 9 2 2 31 23 60 1 9 5 23 Burn 10 | . . . . . 2 . . . 2 1 2 . . 3 . . . . . . . . . . . . Meltdown 2 | . . . . . . . . . . . . . . . . . . . . . . . . 1 1 . Destroy 187 | . . 1 . 1 4 3 4 2 . . . . . 3 7 2 9 2 2 31 23 60 1 8 4 20 Blast 3 | . . . . . . . . . . . . . . . . . . . . . . . . . . 3 Melee Attacks . | . . . . . . . . . . . . . . . . . . . . . . . . . . . Impact . | . . . . . . . . . . . . . . . . . . . . . . . . . . . Slashing . | . . . . . . . . . . . . . . . . . . . . . . . . . . . Piercing . | . . . . . . . . . . . . . . . . . . . . . . . . . . . Sneak Attacks . | . . . . . . . . . . . . . . . . . . . . . . . . . . . Combat Hostiles . | . . . . . . . . . . . . . . . . . . . . . . . . . . . Follow-up Attacks . | . . . . . . . . . . . . . . . . . . . . . . . . . . . Damage Inflicted 50620 | . 191 273 . 718 2099 1382 1076 489 1052 230 1140 . 886 3597 1232 930 2690 679 1010 2834 1396 5631 266 5517 4770 10532 Guns 37817 | . 184 273 . 388 2099 1361 1076 489 621 230 406 . 453 2572 1232 485 2268 679 1010 2834 1396 4989 220 2531 2150 7871 Cannons 4202 | . . . . . . . . . 431 . . . 433 190 . . . . . . . 642 44 844 734 884 Explosions 8547 | . . . . 330 . . . . . . 734 . . 835 . 445 422 . . . . . . 2142 1886 1753 Melee . | . . . . . . . . . . . . . . . . . . . . . . . . . . . Ramming 33 | . 7 . . . . . . . . . . . . . . . . . . . . . 2 . . 24 Kinetic 31815 | . 184 273 . 166 1361 1336 1076 308 516 . . . 433 2045 1232 485 2268 679 1010 2834 1396 4507 190 1581 1411 6524 Thermal 11580 | . . . . 548 738 46 . 181 536 230 406 . 453 1245 . . . . . . . 1124 74 2295 1473 2231 Explosive 5637 | . . . . 4 . . . . . . 734 . . . . 445 422 . . . . . . 1367 1852 813 Electromagnetic 1555 | . . . . . . . . . . . . . . 307 . . . . . . . . . 274 34 940 Impact . | . . . . . . . . . . . . . . . . . . . . . . . . . . . Slashing . | . . . . . . . . . . . . . . . . . . . . . . . . . . . Piercing . | . . . . . . . . . . . . . . . . . . . . . . . . . . . Highest Corruption 44 | . . . . . . 2 2 . 18 17 17 17 17 44 44 44 44 . 1 3 . 4 4 8 5 39 Average Corruption 12 | . . . . . . 2 1 . 12 9 17 17 17 27 44 44 44 . 1 1 . 3 4 7 4 8 Corruption Purged 12 | . . . . . . . 2 . 10 . . . . . . . . . . . . . . . . . Corruption Blocked . | . . . . . . . . . . . . . . . . . . . . . . . . . . . Effects 355 | . . . . . . 8 6 . 13 9 28 12 23 40 41 40 1 . 1 11 . 25 1 26 2 68 Message Errors 83 | . . . . . . 2 1 . 5 3 6 4 1 5 6 9 . . . 3 . 9 . 13 1 15 Matter Fused 72 | . . . . . . 3 1 . 4 . 7 2 3 6 6 9 . . 1 5 . 6 1 5 1 12 Heat Flow Errors 33 | . . . . . . 1 2 . 2 3 . 1 2 . 1 1 . . . 1 . 3 . 2 . 14 Energy Discharges 31 | . . . . . . 1 1 . 1 1 3 . 1 2 3 5 . . . 1 . 2 . 4 . 6 Parts Rejected 3 | . . . . . . . . . . . . . . . 2 . . . . . . . . . . 1 Parts Fused 3 | . . . . . . . . . . . 1 . . . 1 . . . . . . . . . . 1 Data Loss (minor) 31 | . . . . . . 1 1 . 1 1 3 1 4 4 5 3 . . . . . 4 . . . 3 Data Loss (major) 20 | . . . . . . . . . . . 4 3 1 4 2 3 . . . 1 . . . 1 . 1 Misfires 11 | . . . . . . . . . . 1 . . 1 2 2 2 . . . . . . . . . 3 Alerts 8 | . . . . . . . . . . . 1 1 1 2 1 1 1 . . . . . . . . . Misdirections 3 | . . . . . . . . . . . . . 1 . . . . . . . . . . . . 2 Weapon Failures 57 | . . . . . . . . . . . 3 . 8 15 12 7 . . . . . 1 . 1 . 10 Overload Shots 7 | . . . . . . . . . . . . . . . . . . . . . . 1 . . 3 3 Effects 1 | . . . . . . . . . . . . . . . . . . . . . . . . . . 1 Short Circuit 1 | . . . . . . . . . . . . . . . . . . . . . . . . . . 1 Overflow Damage 437 | . . . . 83 . . . . 19 . 35 . . 18 . 57 . . . . . 23 . 15 149 38 Projectiles 115 | . . . . . . . . . 19 . . . . . . . . . . . . 23 . 15 42 16 Explosions 322 | . . . . 83 . . . . . . 35 . . 18 . 57 . . . . . . . . 107 22 Melee . | . . . . . . . . . . . . . . . . . . . . . . . . . . . Knockbacks 22 | . . . . . . . . . 9 . . . 4 . . . . . . . . . . . . 9 Impact . | . . . . . . . . . . . . . . . . . . . . . . . . . . . Kinetic 18 | . . . . . . . . . 7 . . . 4 . . . . . . . . . . . . 7 Secondary 4 | . . . . . . . . . 2 . . . . . . . . . . . . . . . . 2 Self-Inflicted Damage 230 | . . . . 54 . . . . . . 61 . . . . 39 . . . . . . 1 51 . 24 Shots 9 | . . . . 1 . . . . . . 2 . . . . 1 . . . . . . . 4 . 1 Rammed 3 | . 1 . . . . . . . . . . . . . . . . . . . . . 1 . . 1 Targets Rammed 3 | . 1 . . . . . . . . . . . . . . . . . . . . . 1 . . 1 Kicked . | . . . . . . . . . . . . . . . . . . . . . . . . . . . Crushed . | . . . . . . . . . . . . . . . . . . . . . . . . . . . Highest Temperature 396 | . 9 . . 194 . . 29 . 70 396 44 20 175 127 94 78 309 56 200 354 373 371 183 361 382 387 Average Temperature 100 | . 9 . . 100 . . 29 . 42 147 44 20 45 44 36 29 53 33 78 111 108 127 110 142 129 97 Received Heat Transfer 2684 | . 84 66 . 114 190 68 . 9 189 346 27 . 175 298 20 25 17 5 11 158 40 108 76 38 44 576 Effects 3 | . . . . . . . . . . . . . . . . . . . . . . . . . . 3 Shutdowns 2 | . . . . . . . . . . . . . . . . . . . . . . . . . . 2 Short Circuit 1 | . . . . . . . . . . . . . . . . . . . . . . . . . . 1 Siege Activations . | . . . . . . . . . . . . . . . . . . . . . . . . . . . Martial Activations . | . . . . . . . . . . . . . . . . . . . . . . . . . . . Shielding Activations . | . . . . . . . . . . . . . . . . . . . . . . . . . . . Robots Disrupted 1 | . . . . . . 1 . . . . . . . . . . . . . . . . . . . . Combat Hostiles . | . . . . . . . . . . . . . . . . . . . . . . . . . . . Robots Corrupted 7 | . . . . . . . . . . . . . . 2 . . . . . . . . . . . 5 Combat Hostiles 7 | . . . . . . . . . . . . . . 2 . . . . . . . . . . . 5 Parts Fried 12 | . . . . . . 1 . . . . . . . . . . . . . 2 . . . . . 9 Impact Corruptions . | . . . . . . . . . . . . . . . . . . . . . . . . . . . Robots Melted 5 | . . . . . . . . . . . 2 . . 1 . . . . . . . . . 1 1 . Combat Hostiles 5 | . . . . . . . . . . . 2 . . 1 . . . . . . . . . 1 1 . Parts Melted 41 | . . . . 1 7 . . 2 3 . 3 . 2 9 . . . . 1 . . 3 . 6 4 . Heat Transferred 16861 | . . . . 576 1886 101 . 425 1300 525 1000 . 950 2050 . . . . . . . 1231 87 2327 1679 2724 Parts Sabotaged . | . . . . . . . . . . . . . . . . . . . . . . . . . . . Parts Stolen . | . . . . . . . . . . . . . . . . . . . . . . . . . . . Parts Stripped . | . . . . . . . . . . . . . . . . . . . . . . . . . . . Power Chain Reactions 3 | . . . . . . . . . . . . . . 1 . . . . . . . . . 2 . . Alert | -11 -10 -10 -9 -6 -6 -6 -6 -6 -5 -5 -5 -5 -4 -4 -4 -4 -4 -3 -3 -3 -2 -2 -2 -2 -1 -1 ------- Run | Yrd Mat Sub Scr Fac Ext Cet Arc Hub Fac Upp Upp Zhi Pro Fac Upp Upp War Pro Res Tes Res Gar Res Gar Acc Com Maximum Alert Level 5 | . . . . . 3 2 . 2 . . . . . 5 . . . . 1 2 4 5 4 5 5 5 Low Security (%) 36 | 100 100 . . 100 56 . 100 33 100 . . . . . . . . . 74 42 . . . . . . Level 1 11 | . . . . . 16 90 . 40 . . . . . . . . . . 25 22 8 . . . . . Level 2 9 | . . . . . 21 9 . 26 . . . . . 41 . . . . . 34 14 . . . . . Level 3 9 | . . . . . 5 . . . . . . . . 27 . . . . . . 71 13 83 36 . . Level 4 13 | . . . . . . . . . . . . . . 11 . . . . . . 5 16 16 16 36 56 Level 5 17 | . . . . . . . . . . . . . . . . . . . . . . 70 . 47 33 43 High Security 2 | . . . . . . . . . . . . . . 18 . . . . . . . . . . 29 . Max Security . | . . . . . . . . . . . . . . . . . . . . . . . . . . . Peak Influence 2136 | . 55 . . 199 734 422 182 445 167 . . . . 1674 . . . . 247 668 1147 1963 1104 2002 2081 2136 Initial 1324 | . . . . . 89 401 124 2 139 . . . . 659 . . . . 13 96 369 854 1104 804 1200 1324 Average 756 | . 10 . . 36 219 344 108 257 69 . . . . 989 . . . . 135 312 819 1621 1086 1446 1683 1660 Influence Increases 14832 | . 65 . . 412 1173 361 271 667 363 30 310 . 230 2271 305 185 370 80 495 996 1076 1169 29 1198 1101 1675 Destroy 0b10 Robot/C 7440 | . 40 . . 160 480 160 80 220 240 20 280 . 200 820 180 160 340 80 160 540 500 740 20 680 520 820 Destroy 0b10 Robot/NC 355 | . . . . 5 20 10 20 25 10 . . . 5 35 . . . . 40 45 30 5 . 10 25 70 Destroy Leader 1040 | . 10 . . 42 72 . . 74 50 10 30 . 10 186 20 10 . . 44 54 104 50 . 70 72 132 Allied During Kill 2015 | . . . . 53 503 170 100 259 43 . . . . 177 . . . . 132 2 232 . . 41 15 288 Successful Hack 130 | . . . . 10 18 . . . . . . . . . . . . . . 26 . 12 . 5 24 35 Disable Machine 840 | . . . . 90 60 15 60 75 . . . . . 135 . . . . 45 180 . 45 . . 90 45 Anti-Garrison Action 150 | . . . . . . . . . . . . . . . . . . . . . . 100 . 50 . . Destroy Structure 1752 | . . . . 52 5 6 11 14 20 . . . . 288 . . . . 74 104 195 187 9 297 205 285 Advance Influence 600 | . . . . . . . . . . . . . . 600 . . . . . . . . . . . . Partial Spotted 15 | . . . . . . . . . . . . . . 15 . . . . . . . . . . . . Lose Combat Pursuer 495 | . 15 . . . 15 . . . . . . . 15 15 105 15 30 . . 45 15 30 . 45 150 . Influence Decreases 12878 | . 65 . . 229 638 769 572 391 537 139 214 98 135 692 925 497 818 354 344 511 593 345 919 269 1032 1792 Entered New Map 6117 | . . . . . 94 317 186 7 146 42 2 98 . 36 621 201 742 294 7 75 287 285 859 269 802 747 Time Decay 4971 | . 65 . . 219 464 302 286 164 311 97 202 . 115 286 294 286 66 60 277 416 246 . 60 . 160 595 Search Patrol Dispatched 150 | . . . . . . . . . . . . . . 150 . . . . . . . . . . . . Lost Part 590 | . . . . 10 . 10 . . . . 10 . 20 80 10 10 . . . . . 60 . . 50 330 Lost Ally 1050 | . . . . . 80 140 100 220 80 . . . . 140 . . 10 . 60 20 60 . . . 20 120 Squads Dispatched 67 | . 1 . . 2 1 . . 3 4 . . . . 13 . . . . 5 6 11 . 1 . 8 12 Investigation 12 | . . . . 1 1 . . . 1 . . . . 3 . . . . 3 . 1 . . . . 2 Extermination 12 | . . . . 1 . . . . 2 . . . . 1 . . . . . 1 2 . . . 1 4 Reinforcement 15 | . 1 . . . . . . 3 1 . . . . 1 . . . . 1 3 1 . . . 2 2 Assault 19 | . . . . . . . . . . . . . . 5 . . . . . 2 3 . . . 5 4 Garrison 9 | . . . . . . . . . . . . . . 3 . . . . 1 . 4 . 1 . . . Intercept . | . . . . . . . . . . . . . . . . . . . . . . . . . . . Searches Triggered 1 | . . . . . . . . . . . . . . 1 . . . . . . . . . . . . Construction Impeded 2 | . . . . . . . . . . . . . . . . . . . . . 1 . . . 1 . Haulers Reinforced 3 | . . . . . . . . 2 . . . . . . . . . . . . . . . . 1 . Active Scanning Responses . | . . . . . . . . . . . . . . . . . . . . . . . . . . . Cargo Convoy Interrupts . | . . . . . . . . . . . . . . . . . . . . . . . . . . . Stealth | -11 -10 -10 -9 -6 -6 -6 -6 -6 -5 -5 -5 -5 -4 -4 -4 -4 -4 -3 -3 -3 -2 -2 -2 -2 -1 -1 --------- Run | Yrd Mat Sub Scr Fac Ext Cet Arc Hub Fac Upp Upp Zhi Pro Fac Upp Upp War Pro Res Tes Res Gar Res Gar Acc Com Distress Signals 19 | . 1 . . . 3 3 . 4 . . . . . 1 . . . . 3 1 1 . . . 1 1 Communications Jammed 133 | . . . . . . 5 . 3 3 . . . 4 14 . . 1 . . 9 4 . . . . 90 Distress Signals 125 | . . . . . . 5 . 3 2 . . . . 14 . . 1 . . 9 1 . . . . 90 Times Spotted 503 | . 6 3 . 10 26 10 15 6 11 1 13 . 15 42 18 10 35 4 9 40 34 43 9 34 41 68 Peak Tracking Total 16 | . 3 2 . 3 5 5 2 3 2 1 5 . 5 4 2 4 8 2 2 6 7 10 8 8 6 16 Tactical Retreats 24 | . 1 . . . 1 . . . . . . . 1 1 5 1 1 . . 3 1 1 . 1 7 . Traps | -11 -10 -10 -9 -6 -6 -6 -6 -6 -5 -5 -5 -5 -4 -4 -4 -4 -4 -3 -3 -3 -2 -2 -2 -2 -1 -1 ------- Run | Yrd Mat Sub Scr Fac Ext Cet Arc Hub Fac Upp Upp Zhi Pro Fac Upp Upp War Pro Res Tes Res Gar Res Gar Acc Com Traps Triggered 23 | . . 2 . 2 1 . . . . . . . . 1 . . 1 . . 1 2 6 . 3 . 4 Indirectly . | . . . . . . . . . . . . . . . . . . . . . . . . . . . Trap Hack Attempts . | . . . . . . . . . . . . . . . . . . . . . . . . . . . Triggered . | . . . . . . . . . . . . . . . . . . . . . . . . . . . Disarmed . | . . . . . . . . . . . . . . . . . . . . . . . . . . . Reprogrammed . | . . . . . . . . . . . . . . . . . . . . . . . . . . . Reused . | . . . . . . . . . . . . . . . . . . . . . . . . . . . Traps Extracted . | . . . . . . . . . . . . . . . . . . . . . . . . . . . Installed . | . . . . . . . . . . . . . . . . . . . . . . . . . . . Triggered . | . . . . . . . . . . . . . . . . . . . . . . . . . . . Machines | -11 -10 -10 -9 -6 -6 -6 -6 -6 -5 -5 -5 -5 -4 -4 -4 -4 -4 -3 -3 -3 -2 -2 -2 -2 -1 -1 ---------- Run | Yrd Mat Sub Scr Fac Ext Cet Arc Hub Fac Upp Upp Zhi Pro Fac Upp Upp War Pro Res Tes Res Gar Res Gar Acc Com Machines Disabled 67 | . . . . 6 6 1 4 5 . . . . . 9 . 1 1 . 3 15 . 3 . 4 6 3 Max in Single Turn 3 | . . . . 3 1 1 1 1 . . . . . 3 . 1 1 . 1 2 . 1 . 2 1 1 Garrison Relay 1 | . . . . . . . . . . . . . . . . . . . . . . . . 1 . . Network Hub 1 | . . . . . . . . 1 . . . . . . . . . . . . . . . . . . Machines Repaired 1 | . . . . . . . . . . . . . . . . . . . . . . . . . 1 . Machines Dismantled 8 | . . . . 2 4 1 . 1 . . . . . . . . . . . . . . . . . . Machines Sabotaged . | . . . . . . . . . . . . . . . . . . . . . . . . . . . Overloaded Fab Kills . | . . . . . . . . . . . . . . . . . . . . . . . . . . . Hacking | -11 -10 -10 -9 -6 -6 -6 -6 -6 -5 -5 -5 -5 -4 -4 -4 -4 -4 -3 -3 -3 -2 -2 -2 -2 -1 -1 --------- Run | Yrd Mat Sub Scr Fac Ext Cet Arc Hub Fac Upp Upp Zhi Pro Fac Upp Upp War Pro Res Tes Res Gar Res Gar Acc Com Machines Accessed 47 | . . . 3 1 11 . . . 2 1 . 4 . 4 . 1 1 . 4 2 2 2 1 2 2 4 Terminals 26 | . . . . . 11 . . . 1 . . . . 1 . . . . 3 2 . 2 . 2 2 2 Fabricators . | . . . . . . . . . . . . . . . . . . . . . . . . . . . Repair Stations . | . . . . . . . . . . . . . . . . . . . . . . . . . . . Recycling Units 9 | . . . . 1 . . . . 1 . . . . 3 . . . . 1 . 1 . . . . 2 Scanalyzers . | . . . . . . . . . . . . . . . . . . . . . . . . . . . Garrison Access 2 | . . . . . . . . . . . . . . . . . . . . . 1 . 1 . . . Total Hacks 109 | . . . 25 2 21 . . . 3 1 . 17 . 6 . 1 1 . 7 3 3 6 1 2 6 4 Successful 79 | . . . 25 2 8 . . . 3 1 . 17 . 5 . 1 1 . 2 2 2 2 1 2 1 4 Failed 30 | . . . . . 13 . . . . . . . . 1 . . . . 5 1 1 4 . . 5 . Catastrophic 7 | . . . . . 2 . . . . . . . . 1 . . . . 2 . . . . . 2 . Database Lockouts . | . . . . . . . . . . . . . . . . . . . . . . . . . . . Manual 28 | . . . . 2 2 1 . . 3 . . . . 5 . . . . 7 . 1 2 . 1 1 3 Terminals 51 | . . . . . 21 . . . 2 . . . . 3 . . . . 6 3 . 6 . 2 6 2 Fabricators . | . . . . . . . . . . . . . . . . . . . . . . . . . . . Repair Stations . | . . . . . . . . . . . . . . . . . . . . . . . . . . . Recycling Units 10 | . . . . 2 . . . . 1 . . . . 3 . . . . 1 . 1 . . . . 2 Scanalyzers . | . . . . . . . . . . . . . . . . . . . . . . . . . . . Garrison Access 3 | . . . . . . . . . . . . . . . . . . . . . 2 . 1 . . . Terminal Hacks 67 | . . . 25 . 8 . . . 2 1 . 17 . 2 . 1 1 . 1 2 . 2 . 2 1 2 Record 30 | . . . 24 . . . . . . . . 5 . . . 1 . . . . . . . . . . Part Schematic 4 | . . . . . . . . . . . . 4 . . . . . . . . . . . . . . Robot Analysis 4 | . . . . . . . . . . . . 4 . . . . . . . . . . . . . . Prototype ID Bank 4 | . . . . . . . . . . . . 4 . . . . . . . . . . . . . . Open Door 10 | . . . . . 6 . . . . 1 . . . . . . 1 . . 1 . . . 1 . . Level Access Points 2 | . . . . . . . . . . . . . . . . . . . . 1 . . . . . 1 Branch Access Points 2 | . . . . . . . . . 1 . . . . 1 . . . . . . . . . . . . Emergency Access Points 1 | . . . . . . . . . . . . . . . . . . . . . . 1 . . . . Machine Index 1 | . . . . . . . . . . . . . . . . . . . . . . . . . 1 . Recycling Unit Index 5 | . . . . . 1 . . . 1 . . . . 1 . . . . 1 . . . . . . 1 Alert Level 1 | . . . . . 1 . . . . . . . . . . . . . . . . . . . . . Garrison Registry 1 | . . . . . . . . . . . . . . . . . . . . . . . . 1 . . Security Stations 1 | . . . . . . . . . . . . . . . . . . . . . . 1 . . . . Proto ID Catalog 1 | . . . 1 . . . . . . . . . . . . . . . . . . . . . . . Fabricator Hacks . | . . . . . . . . . . . . . . . . . . . . . . . . . . . Repair Station Hacks . | . . . . . . . . . . . . . . . . . . . . . . . . . . . Recycling Unit Hacks . | . . . . . . . . . . . . . . . . . . . . . . . . . . . Scanalyzer . | . . . . . . . . . . . . . . . . . . . . . . . . . . . Garrison Access Hacks 2 | . . . . . . . . . . . . . . . . . . . . . 1 . 1 . . . Unlock Access 2 | . . . . . . . . . . . . . . . . . . . . . 1 . 1 . . . Unauthorized Hacks 9 | . . . . 1 . . . . 1 . . . . 3 . . . . 1 . 1 . . . . 2 Terminals . | . . . . . . . . . . . . . . . . . . . . . . . . . . . Fabricators . | . . . . . . . . . . . . . . . . . . . . . . . . . . . Repair Stations . | . . . . . . . . . . . . . . . . . . . . . . . . . . . Recycling Units 9 | . . . . 1 . . . . 1 . . . . 3 . . . . 1 . 1 . . . . 2 Scrapoids 9 | . . . . 1 . . . . 1 . . . . 3 . . . . 1 . 1 . . . . 2 Scanalyzers . | . . . . . . . . . . . . . . . . . . . . . . . . . . . Garrison Access . | . . . . . . . . . . . . . . . . . . . . . . . . . . . Data Cores Recovered 1 | . . . . . 1 . . . . . . . . . . . . . . . . . . . . . Used . | . . . . . . . . . . . . . . . . . . . . . . . . . . . Hacking Detections 11 | . . . . 1 7 . . . . . . . . . . . . . . . . 1 . . 1 1 Full Trace Events 2 | . . . . . 1 . . . . . . . . . . . . . 1 . . . . . . . Feedback Events 1 | . . . . . . . . . . . . . . . . . . . 1 . . . . . . . Corruption 1 | . . . . . . . . . . . . . . . . . . . 1 . . . . . . . Feedback Blocked . | . . . . . . . . . . . . . . . . . . . . . . . . . . . Robot Schematics Acquired 2 | . . . . . . . . . . . . . . . . . . . . 2 . . . . . . Robots Built . | . . . . . . . . . . . . . . . . . . . . . . . . . . . Authchips . | . . . . . . . . . . . . . . . . . . . . . . . . . . . Time . | . . . . . . . . . . . . . . . . . . . . . . . . . . . Total Robot Build Rating . | . . . . . . . . . . . . . . . . . . . . . . . . . . . Part Schematics Acquired 7 | . . . . . . . . . . . . 4 . . . . . . . 3 . . . . . . Parts Built . | . . . . . . . . . . . . . . . . . . . . . . . . . . . Authchips . | . . . . . . . . . . . . . . . . . . . . . . . . . . . Time . | . . . . . . . . . . . . . . . . . . . . . . . . . . . Total Part Build Rating . | . . . . . . . . . . . . . . . . . . . . . . . . . . . Parts Repaired . | . . . . . . . . . . . . . . . . . . . . . . . . . . . Time . | . . . . . . . . . . . . . . . . . . . . . . . . . . . Parts Recycled . | . . . . . . . . . . . . . . . . . . . . . . . . . . . Recycled Matter . | . . . . . . . . . . . . . . . . . . . . . . . . . . . Retrieved Matter . | . . . . . . . . . . . . . . . . . . . . . . . . . . . Retrieved Components . | . . . . . . . . . . . . . . . . . . . . . . . . . . . Parts Scanalyzed . | . . . . . . . . . . . . . . . . . . . . . . . . . . . Part Schematics Acquired . | . . . . . . . . . . . . . . . . . . . . . . . . . . . Parts Damaged . | . . . . . . . . . . . . . . . . . . . . . . . . . . . Bothacking | -11 -10 -10 -9 -6 -6 -6 -6 -6 -5 -5 -5 -5 -4 -4 -4 -4 -4 -3 -3 -3 -2 -2 -2 -2 -1 -1 ------------ Run | Yrd Mat Sub Scr Fac Ext Cet Arc Hub Fac Upp Upp Zhi Pro Fac Upp Upp War Pro Res Tes Res Gar Res Gar Acc Com Used RIF Installer 1 | . . . . . . . . . . . . . . . . . . . . . . 1 . . . . Robots Hacked 3 | . . . . 1 . . . . . . . . . . . . 1 . . . . . . . . 1 Non-combat . | . . . . . . . . . . . . . . . . . . . . . . . . . . . Combat . | . . . . . . . . . . . . . . . . . . . . . . . . . . . Robot Hacks Applied . | . . . . . . . . . . . . . . . . . . . . . . . . . . . Manual 3 | . . . . 1 . . . . . . . . . . . . 1 . . . . . . . . 1 Relay Couplers Released 4 | . . . . . . . . . . . . . . . . . . . . . . . . 4 . . Machine Destruction 4 | . . . . . . . . . . . . . . . . . . . . . . . . 4 . . Fabnet Peak Effective % . | . . . . . . . . . . . . . . . . . . . . . . . . . . . Robots Rewired 13 | . . . . . 12 . . . . . . . . . . . . . . . . . . 1 . . Allies Hacked 4 | . . . . . . . . 2 2 . . . . . . . . . . . . . . . . . Hacks Repelled . | . . . . . . . . . . . . . . . . . . . . . . . . . . . Allies | -11 -10 -10 -9 -6 -6 -6 -6 -6 -5 -5 -5 -5 -4 -4 -4 -4 -4 -3 -3 -3 -2 -2 -2 -2 -1 -1 -------- Run | Yrd Mat Sub Scr Fac Ext Cet Arc Hub Fac Upp Upp Zhi Pro Fac Upp Upp War Pro Res Tes Res Gar Res Gar Acc Com Total Allies 82 | . . . . 6 27 5 . . 5 . . . . 15 . . 1 . 5 . 5 . . 2 . 11 Largest Group 26 | . . . . 5 26 25 19 12 5 . . . . 10 . . 1 . 5 1 5 . . 2 1 8 Highest-Rated Group 1221 | . . . . 140 924 1221 961 635 235 . . . . 473 . . 36 . 320 64 323 . . 114 29 512 Highest-Rated Ally 159 | . . . . 29 159 159 146 96 47 . . . . 50 . . 36 . 64 64 67 . . 85 29 64 Total Orders 20 | . . . . . . . 2 . . 1 . . . . 1 . . . . 1 1 . . . . 14 STAY 8 | . . . . . . . 1 . . . . . . . . . . . . . . . . . . 7 FOLLOW 8 | . . . . . . . 1 . . . . . . . . . . . . . . . . . . 7 RETURN 4 | . . . . . . . . . . 1 . . . . 1 . . . . 1 1 . . . . . Ally Attacks 748 | . . . . 27 93 71 23 89 30 . . . . 114 . . . . 40 2 83 . . 22 4 150 Total Damage 16640 | . . . . 322 1441 1777 423 2291 815 . . . . 2213 . . . . 1018 144 1846 . . 1034 142 3174 Kills 102 | . . . . 4 10 9 4 15 6 . . . . 20 . . . . 8 1 10 . . 2 1 12 Allies Corrupted 9 | . . . . . . . . 3 2 . . . . 2 . . . . . . . . . . . 2 Allies Melted 1 | . . . . . . . . . . . . . . . . . . . . . . . . . 1 . Intel | -11 -10 -10 -9 -6 -6 -6 -6 -6 -5 -5 -5 -5 -4 -4 -4 -4 -4 -3 -3 -3 -2 -2 -2 -2 -1 -1 ------- Run | Yrd Mat Sub Scr Fac Ext Cet Arc Hub Fac Upp Upp Zhi Pro Fac Upp Upp War Pro Res Tes Res Gar Res Gar Acc Com Active Infowar (turns) 15050 | . . . . 660 600 288 626 470 1019 415 573 300 388 764 643 634 935 375 652 1009 528 1318 122 677 451 1603 Optics 7060 | . . . . . . . . . . . . . . . . . 325 375 652 1009 528 1318 122 677 451 1603 Sensors 1223 | . . . . 660 563 . . . . . . . . . . . . . . . . . . . . . Terrain 1021 | . . . . . . . . . . . . . . . 202 634 121 . 64 . . . . . . . Structural 37 | . . . . . 37 . . . . . . . . . . . . . . . . . . . . . Seismic 291 | . . . . 291 . . . . . . . . . . . . . . . . . . . . . . Jamming 9327 | . . . . . . 288 626 470 1019 415 573 300 388 764 643 634 935 375 652 631 386 64 . . . 164 ECM 1 | . . . . . . . . . . . . . . . . . . . . . . . . . . 1 Robot Analysis Total 4 | . . . . . . . . . . . . 4 . . . . . . . . . . . . . . Derelict Logs Recovered 5 | . . 1 . . . . . . . 1 1 . 1 . . 1 . . . . . . . . . . Drone Launches 12 | . . . . . . . . . . 3 . . . . 3 . . . . 3 3 . . . . . Drone Recoveries 12 | . . . . . . . . . . 3 . . . . 3 . . . . 3 3 . . . . . Exploration | -11 -10 -10 -9 -6 -6 -6 -6 -6 -5 -5 -5 -5 -4 -4 -4 -4 -4 -3 -3 -3 -2 -2 -2 -2 -1 -1 ------------- Run | Yrd Mat Sub Scr Fac Ext Cet Arc Hub Fac Upp Upp Zhi Pro Fac Upp Upp War Pro Res Tes Res Gar Res Gar Acc Com Turns Passed 23179 | 87 372 671 5560 661 1343 664 626 470 1019 415 573 300 388 783 643 634 935 375 652 1009 528 1318 122 677 463 1891 Spaces Moved 11767 | 46 178 387 1539 377 778 212 195 180 440 325 439 243 237 456 437 486 683 295 422 666 325 709 72 364 225 1051 Core 510 | 42 35 . 428 . . . . . . . . . . . . . . . . . . . . . . 5 Treads 2521 | 4 143 387 1111 59 . 183 195 180 259 . . . . . . . . . . . . . . . . . Legs . | . . . . . . . . . . . . . . . . . . . . . . . . . . . Wheels 8736 | . . . . 318 778 29 . . 181 325 439 243 237 456 437 486 683 295 422 666 325 709 72 364 225 1046 Hover . | . . . . . . . . . . . . . . . . . . . . . . . . . . . Flight . | . . . . . . . . . . . . . . . . . . . . . . . . . . . Fastest Speed 50 | 50 160 160 50 116 110 110 240 160 120 120 110 100 120 100 110 110 110 120 120 120 130 130 150 150 130 50 Average Speed 168 | 167 177 160 356 135 120 220 240 239 190 120 119 110 120 117 119 119 119 120 128 127 139 148 150 150 155 142 Slowest Speed 480 | 250 250 160 480 240 128 240 240 240 240 120 120 120 120 120 120 120 130 120 130 140 140 150 150 160 160 150 Overloaded Moves . | . . . . . . . . . . . . . . . . . . . . . . . . . . . Propulsion Burnouts . | . . . . . . . . . . . . . . . . . . . . . . . . . . . Robots Hopped . | . . . . . . . . . . . . . . . . . . . . . . . . . . . Potential Cave-ins 10 | . . . . . . . . . . . . . . 8 . . . . . . 2 . . . . . Cave-ins Triggered . | . . . . . . . . . . . . . . . . . . . . . . . . . . . Teleports 1 | . . . . . . . . . . . . . . . . . . . . . 1 . . . . . Exploration Rate (%) 43 | 4 32 17 79 10 83 66 80 20 15 59 61 60 41 12 65 75 82 55 11 77 8 67 3 55 11 30 Regions Visited 26 Branch Regions 16 Pre-discovered Areas 12 | . . 2 4 . . . . . . 1 1 3 . . . 1 . . . . . . . . . . Known Exits Taken 14 | . . . 1 1 . . . 1 1 . . 1 1 1 . . 1 1 1 1 1 . 1 . 1 . Unknown Exits Taken 10 | 1 1 1 . . 1 1 1 . . 1 1 . . . 1 1 . . . . . . . . . . Scrap Searched 20 | . . . 7 . . . . . . 3 2 . . . 4 3 . 1 . . . . . . . . Spaces Dug 91 | . . . . 5 . . . . 3 3 . . 7 17 . 10 . 1 5 9 3 7 1 10 7 3 Terrain Destroyed 1131 | . . 12 . 62 . 1 10 3 8 6 55 . 30 127 48 92 54 8 32 67 39 117 4 157 92 107 Melee . | . . . . . . . . . . . . . . . . . . . . . . . . . . . Projectile 686 | . . . . . . 1 10 3 8 6 4 . 30 52 48 40 30 8 31 64 38 104 4 91 39 75 AOE 424 | . . 12 . 62 . . . . . . 51 . . 75 . 52 24 . . . . . . 66 53 29 Terrain Rammed . | . . . . . . . . . . . . . . . . . . . . . . . . . . . Walls Destroyed . | . . . . . . . . . . . . . . . . . . . . . . . . . . . Machines Disabled . | . . . . . . . . . . . . . . . . . . . . . . . . . . . Actions | -11 -10 -10 -9 -6 -6 -6 -6 -6 -5 -5 -5 -5 -4 -4 -4 -4 -4 -3 -3 -3 -2 -2 -2 -2 -1 -1 --------- Run | Yrd Mat Sub Scr Fac Ext Cet Arc Hub Fac Upp Upp Zhi Pro Fac Upp Upp War Pro Res Tes Res Gar Res Gar Acc Com Total 14123 | 54 204 409 1626 477 1045 358 306 201 582 339 464 278 282 586 526 515 771 307 509 803 383 932 84 458 296 1328 Wait 535 | . . 2 2 . 107 58 69 . 90 . 2 2 . 6 47 . 23 1 20 6 4 32 8 3 . 53 Move 11742 | 45 177 386 1538 376 778 211 194 179 439 324 438 242 236 455 436 485 682 294 421 665 325 707 71 363 224 1051 Hop . | . . . . . . . . . . . . . . . . . . . . . . . . . . . Pick Up 175 | 3 7 1 52 11 4 8 2 1 7 1 2 5 3 13 2 1 3 . 7 11 5 9 . 1 4 12 Fast Attach 135 | 6 1 . 10 6 7 6 2 3 5 . . 9 3 8 3 . 7 . 6 17 2 7 . 2 2 23 Attach 77 | . . 2 2 12 1 2 1 . 3 1 2 2 2 7 1 . 2 . 4 1 5 6 . 1 4 16 Detach 11 | . . . 2 . 2 . . 1 . . . 1 . . . . 1 . 1 1 . . . . . 2 Swap 153 | . 1 2 2 8 16 11 1 2 7 4 6 2 . 5 3 4 8 . 11 5 6 9 1 13 4 22 Drop 221 | . 1 . 18 17 13 16 4 5 10 1 . 15 4 11 2 1 11 . 10 32 4 11 . 3 3 29 Fire 905 | . 16 16 . 19 70 37 33 7 20 8 14 . 34 80 32 24 34 12 26 65 32 103 3 55 53 112 Melee . | . . . . . . . . . . . . . . . . . . . . . . . . . . . Ram 2 | . . . . . . . . . . . . . . . . . . . . . . . 1 . . 1 Kick . | . . . . . . . . . . . . . . . . . . . . . . . . . . . Crush 1 | . 1 . . . . . . . . . . . . . . . . . . . . . . . . . Escape Stasis 99 | . . . . 16 15 . . . . . . . . . . . . . . . . 46 . 16 . 6 Rewire 1 | . . . . . . 1 . . . . . . . . . . . . . . . . . . . . Trap . | . . . . . . . . . . . . . . . . . . . . . . . . . . . Miscellaneous 66 | . . . . 12 32 8 . 3 1 . . . . 1 . . . . 3 . . 2 . 1 2 1 Route ------- -11/Scrapyard -10/Materials (discovered 2 exits: [*Mat] / [*Sub]) -10/Subcaves -9/Scraptown (discovered 2 exits: *Fac x2) -6/Factory (discovered 5 exits: Fac x3 / *Ext x2) -6/Extension (discovered 2 exits: *Fac / *Cet) -6/Cetus (discovered 2 exits: *Fac / [*Arc]) -6/Archives (discovered 3 exits: *Fac / [*Hub x2]) -6/Hub_04(d) (discovered 3 exits: *Fac x3) -5/Factory (discovered 2 exits: *Upp x2) -5/Upper Caves -5/Upper Caves -5/Zhirov -4/Proximity Caves -4/Factory (discovered 4 exits: Res x2 / *Upp x2) -4/Upper Caves -4/Upper Caves -4/Warlord -3/Proximity Caves -3/Research -3/Testing -2/Research -2/Garrison (discovered 2 exits: *Res x2) -2/Research -2/Garrison (discovered 3 exits: *Acc x3) -1/Access -1/Command (discovered 2 exits: Sur x2) History --------- Turn | Location | Event 7 | -11/Scrapyard | Discovered new exit (range 14) 88 | -11/Scrapyard | Entered Materials 318 | -10/Materials | Build established: Mutant 378 | -10/Materials | Discovered new exit (range 9) 446 | -10/Materials | Discovered new exit (range 7) 460 | -10/Materials | Entered Subcaves 460 | -10/Subcaves | Learned location of Zion (-7) 461 | -10/Subcaves | Approached by a straggling Scientist 487 | -10/Subcaves | Scientist uncovered a shortcut to Scraptown 596 | -10/Subcaves | A swath of the cavern ceiling suddenly collapsed 681 | -10/Subcaves | Shifting Twisted Machinery released Shrapnel Trap 752 | -10/Subcaves | Shifting Twisted Machinery released Sub. Power Source 791 | -10/Subcaves | Met a Zionite searching for "candidates" 1131 | -10/Subcaves | Entered Scraptown 1475 | -9/Scraptown | Build established: Hauler-Mutant 2541 | -9/Scraptown | Discovered new exit (range 11) 3008 | -9/Scraptown | Visited CR-KLE's Repair Center 3079 | -9/Scraptown | Visited UFD Registry 3079 | -9/Scraptown | Registered with UFD as "Scrapchaser" 3190 | -9/Scraptown | Visited Supply Room 3257 | -9/Scraptown | Visited Junk Repository 3382 | -9/Scraptown | Visited Derelict Rescue Squad 3449 | -9/Scraptown | Visited Scrap Suit Storage 3521 | -9/Scraptown | Visited Science Testing Area 3569 | -9/Scraptown | Visited Cartography Club 3651 | -9/Scraptown | Visited Abandonware Association 3732 | -9/Scraptown | Visited Chapter 10 3814 | -9/Scraptown | Visited Science Guys 4339 | -9/Scraptown | Released all parts (4) 4405 | -9/Scraptown | CR-KLE repaired 4 parts 4521 | -9/Scraptown | Learned abandonware demo "REPAIR.EXE" 4521 | -9/Scraptown | Learned abandonware demo "REBOOT5.EXE" 4563 | -9/Scraptown | Found Deep Structural Scanner 4568 | -9/Scraptown | Learned location of Proximity Caves (-4) 4568 | -9/Scraptown | Learned location of Warlord (-4) 4568 | -9/Scraptown | Learned 8 Materials zone layouts 4568 | -9/Scraptown | Learned location of Extension (-6) 4568 | -9/Scraptown | Learned 8 Factory zone layouts 4568 | -9/Scraptown | Learned 24 Factory zone layouts 4568 | -9/Scraptown | Learned 12 Research zone layouts 4568 | -9/Scraptown | Learned 8 Access zone layouts 4568 | -9/Scraptown | Learned 12 Lower Caves zone layouts 4568 | -9/Scraptown | Learned 16 Lower Caves zone layouts 4568 | -9/Scraptown | Learned 8 Proximity Caves zone layouts 4568 | -9/Scraptown | Learned 12 Proximity Caves zone layouts 4568 | -9/Scraptown | Learned 4 Hub_04(d) zone layouts 4568 | -9/Scraptown | Learned Storage emergency access door positions 4568 | -9/Scraptown | Learned location of 1 exit from Lower Caves 4568 | -9/Scraptown | Learned location of 2 exits from Lower Caves 4568 | -9/Scraptown | Identified exit to Factory 5294 | -9/Scraptown | Visited DA-N13 Charitable Foundation 5347 | -9/Scraptown | Found DCF Scrap (30 items) 5553 | -9/Scraptown | Found DRS Beacon 5660 | -9/Scraptown | Found Scrap Suit 5666 | -9/Scraptown | Found Scrap Suit 6422 | -9/Scraptown | Met Optimus 6422 | -9/Scraptown | Accepted into 0bPrime 6691 | -9/Scraptown | Entered Factory 6691 | -6/Factory | Evolved 8 slots: Utility x7, Weapon x1 6692 | -6/Factory | Identified exit to Factory 6693 | -6/Factory | Identified exit to Extension 6791 | -6/Factory | Scrapoid reinforcements arrived 6883 | -6/Factory | Found Scrap Suit 7352 | -6/Factory | Entered Extension 7352 | -6/Extension | Accompanied by 4 allies 7389 | -6/Extension | Rescued a captive Derelict 7390 | -6/Extension | Rescued a captive Derelict 7599 | -6/Extension | Rescued a captive Derelict 7600 | -6/Extension | Rescued a captive Derelict 7667 | -6/Extension | Rescued a captive Derelict 7679 | -6/Extension | Rescued a captive Derelict 7723 | -6/Extension | Rescued a captive Derelict 7755 | -6/Extension | Rescued a captive Derelict 7755 | -6/Extension | Rescued a captive Derelict 7912 | -6/Extension | Build established: Commander-Scrapper 7952 | -6/Extension | Warlord forces began an assault 8041 | -6/Extension | Spotted B-75 Beast 8051 | -6/Extension | Allies destroyed B-75 Beast 8166 | -6/Extension | Lost 3 allies 8191 | -6/Extension | Rescued a captive Derelict 8192 | -6/Extension | Rescued a captive Derelict 8421 | -6/Extension | Rescued a captive Derelict 8469 | -6/Extension | Rescued a captive Derelict 8470 | -6/Extension | Rescued a captive Derelict 8549 | -6/Extension | Rescued A7 8577 | -6/Extension | Disrupted transfer network 8594 | -6/Extension | Discovered exit to Factory (range 10) 8605 | -6/Extension | Discovered new exit (range 6) 8695 | -6/Extension | Entered Cetus 8695 | -6/Cetus | Accompanied by 26 allies (A7) 8700 | -6/Cetus | Acquired a Cetus Manufacturing Module code from A7 8712 | -6/Cetus | Spotted Cetus Guard 8713 | -6/Cetus | Spotted Cetus Guard 8715 | -6/Cetus | Spotted Cetus Guard 8715 | -6/Cetus | Spotted Cetus Guard 8725 | -6/Cetus | Allies destroyed Cetus Guard 8731 | -6/Cetus | Allies destroyed Cetus Guard 8738 | -6/Cetus | Allies destroyed Cetus Guard 8743 | -6/Cetus | Allies destroyed Cetus Guard 8769 | -6/Cetus | Lost 7 allies 8945 | -6/Cetus | Started Cetus Manufacturing Module 8970 | -6/Cetus | Manufactured an Enhanced Grunt 8986 | -6/Cetus | Escorted A7 to Cetus Mainframe 8995 | -6/Cetus | Manufactured an Enhanced Grunt 9018 | -6/Cetus | Discovered new exit (range 15) 9020 | -6/Cetus | Manufactured an Enhanced Grunt 9045 | -6/Cetus | Manufactured an Enhanced Grunt 9064 | -6/Cetus | Spotted Cetus Guard 9064 | -6/Cetus | Spotted Cetus Guard 9069 | -6/Cetus | Spotted Cetus Guard 9069 | -6/Cetus | Spotted Cetus Guard 9070 | -6/Cetus | Manufactured an Enhanced Grunt 9082 | -6/Cetus | Destroyed Cetus Guard 9084 | -6/Cetus | Allies destroyed Cetus Guard 9085 | -6/Cetus | Allies destroyed Cetus Guard 9089 | -6/Cetus | Allies destroyed Cetus Guard 9091 | -6/Cetus | Discovered exit to Factory (range 15) 9103 | -6/Cetus | Met Revision 17 9243 | -6/Cetus | Build established: Commander-Tank 9359 | -6/Cetus | Entered Archives 9359 | -6/Archives | Accompanied by 19 allies (A7) 9364 | -6/Archives | Received a hacking code to weaken MAIN.C 9417 | -6/Archives | Lost 5 allies 9426 | -6/Archives | Discovered new exit (range 14) 9491 | -6/Archives | Discovered new exit (range 16) 9780 | -6/Archives | Discovered exit to Factory (range 16) 9985 | -6/Archives | Entered Hub_04(d) 9985 | -6/Hub_04(d) | Accompanied by 12 allies 9985 | -6/Hub_04(d) | Discovered exit to Factory (range 11) 10093 | -6/Hub_04(d) | Discovered exit to Factory (range 7) 10196 | -6/Hub_04(d) | Lost 6 allies 10345 | -6/Hub_04(d) | Network Hub disabled 10426 | -6/Hub_04(d) | Build established: Scavenger-Tank 10455 | -6/Hub_04(d) | Entered Factory 10455 | -5/Factory | Evolved 2 slots: Power x1, Utility x1 10456 | -5/Factory | Identified exit to Upper Caves 10457 | -5/Factory | Lost 4 allies 11077 | -5/Factory | Scrapoid reinforcements arrived 11130 | -5/Factory | Found Corrupted Scrap Suit 11134 | -5/Factory | System corruption reached 10% 11144 | -5/Factory | Lost 3 allies 11424 | -5/Factory | Build established: Scavenger-Scrapper 11474 | -5/Factory | Entered Upper Caves 11795 | -5/Upper Caves | Spotted B-75 Beast 11817 | -5/Upper Caves | Destroyed B-75 Beast 11872 | -5/Upper Caves | Discovered new exit (range 12) 11889 | -5/Upper Caves | Entered another Upper Caves area 12057 | -5/Upper Caves | Learned location of Armory (-3) 12194 | -5/Upper Caves | Attracted the attention of an 0b10 checkpoint 12451 | -5/Upper Caves | Discovered new exit (range 7) 12462 | -5/Upper Caves | Entered Zhirov 12463 | -5/Zhirov | Identified exit to Proximity Caves 12484 | -5/Zhirov | Met Zhirov 12528 | -5/Zhirov | Found Alien Artifact 12528 | -5/Zhirov | Identified Integrated Dissipator 12528 | -5/Zhirov | Installed Integrated Dissipator, increased core heat dissipation (+20) 12543 | -5/Zhirov | Found Alien Artifact 12708 | -5/Zhirov | Learned location of Quarantine (-2) 12708 | -5/Zhirov | Learned location of Testing (-3) 12708 | -5/Zhirov | Learned location of Command (-1) 12715 | -5/Zhirov | Zhirov requested help retrieving the SGEMP Prototype 12762 | -5/Zhirov | Entered Proximity Caves 12763 | -4/Proximity Caves | Identified exit to Factory 12898 | -4/Proximity Caves | Spotter reported a threat 12901 | -4/Proximity Caves | Spotter reported a threat 12962 | -4/Proximity Caves | Lost 3 parts (1u2w) 12981 | -4/Proximity Caves | Spotter reported a threat 13067 | -4/Proximity Caves | Learned 4 Research zone layouts 13104 | -4/Proximity Caves | Spotter reported a threat 13150 | -4/Proximity Caves | Entered Factory 13150 | -4/Factory | Evolved 2 slots: Utility x2 13151 | -4/Factory | Identified exit to Research 13189 | -4/Factory | Identified exit to Upper Caves 13400 | -4/Factory | Search patrols dispatched 13455 | -4/Factory | Build established: Scavenger-Tank 13483 | -4/Factory | Scrapoids reinforcements arrived? 13523 | -4/Factory | Scrapoids reinforcements arrived? 13548 | -4/Factory | System corruption reached 10% 13558 | -4/Factory | System corruption reached 30% 13566 | -4/Factory | Garrison activated, responded to threat 13585 | -4/Factory | Lost 5 parts (1p2u2w) 13592 | -4/Factory | Found Scrap Suit 13595 | -4/Factory | Lost 10 allies 13650 | -4/Factory | First assault squad dispatched 13675 | -4/Factory | Scrapoids reinforcements arrived? 13767 | -4/Factory | Lost 5 allies 13768 | -4/Factory | Found Scrap Suit 13787 | -4/Factory | High security lockdown imminent 13815 | -4/Factory | Destroyed 12 combat bots 13867 | -4/Factory | High security lockdown engaged 13933 | -4/Factory | Entered Upper Caves 14001 | -4/Upper Caves | Build established: Scavenger-Scrapper 14102 | -4/Upper Caves | Spotted B-86 Titan 14328 | -4/Upper Caves | Attracted the attention of an 0b10 checkpoint 14573 | -4/Upper Caves | Discovered new exit (range 3) 14576 | -4/Upper Caves | Entered another Upper Caves area 14601 | -4/Upper Caves | Found Alien Artifact 14988 | -4/Upper Caves | Attracted the attention of an 0b10 checkpoint 15145 | -4/Upper Caves | Encountered a Warlord checkpoint 15178 | -4/Upper Caves | Discovered new exit (range 16) 15178 | -4/Upper Caves | Spotted B-86 Titan 15210 | -4/Upper Caves | Entered Warlord 15211 | -4/Warlord | Identified exit to Proximity Caves 15224 | -4/Warlord | Lost 3 allies 15253 | -4/Warlord | System corruption cleaned by Quarantine Array 15696 | -4/Warlord | Visited the Vortex Lab 15707 | -4/Warlord | Found Prototype Energy Cannon 15708 | -4/Warlord | Identified Vortex Cannon 15712 | -4/Warlord | Warlord's base attacked by MAIN.C 15810 | -4/Warlord | Found Prototype Reactor 15810 | -4/Warlord | Identified Vortex Chain Reactor 15817 | -4/Warlord | Found Prototype Device 15817 | -4/Warlord | Identified Exp. Focal Shield 15820 | -4/Warlord | Found Prototype Processor 15820 | -4/Warlord | Identified Spectral Analyzer 15824 | -4/Warlord | Found Prototype Hackware 15824 | -4/Warlord | Identified System Mapper 15831 | -4/Warlord | Found Prototype Processor 15831 | -4/Warlord | Identified Exp. Targeting Computer 16016 | -4/Warlord | Warlord forces counterattacked 16092 | -4/Warlord | Spotted Executioner 16094 | -4/Warlord | Lost 5 allies 16103 | -4/Warlord | Destroyed Executioner 16123 | -4/Warlord | Found Prototype Processor 16123 | -4/Warlord | Identified Exp. Core Analyzer 16125 | -4/Warlord | Destroyed 12 combat bots 16145 | -4/Warlord | Entered Proximity Caves 16433 | -3/Proximity Caves | Attracted the attention of an 0b10 checkpoint 16508 | -3/Proximity Caves | Discovered exit to Research (range 10) 16520 | -3/Proximity Caves | Entered Research 16520 | -3/Research | Evolved 2 slots: Utility x1, Weapon x1 16521 | -3/Research | Identified exit to Testing 16572 | -3/Research | Scrapoid reinforcements arrived 16635 | -3/Research | Garrison activated, responded to threat 16720 | -3/Research | Revision forces began assault on 0b10 16845 | -3/Research | Met up with Revision 17++ 16854 | -3/Research | Found Scrap Suit 16934 | -3/Research | Found Scrap Suit 16990 | -3/Research | Lost 3 allies 17172 | -3/Research | Entered Testing 17172 | -3/Testing | Accompanied by 1 ally 17268 | -3/Testing | Found Prototype Ballistic Gun 17268 | -3/Testing | Identified Hyp. Multirail 17404 | -3/Testing | Found Prototype Protection 17404 | -3/Testing | Identified Hvy. Regenerative Plating 17419 | -3/Testing | Found Prototype Protection 17419 | -3/Testing | Identified SHELL Armor 17657 | -3/Testing | Scanned by Researcher 17671 | -3/Testing | Found Prototype Device 17671 | -3/Testing | Identified AEGIS Remote Shield 17750 | -3/Testing | Found Prototype Energy Cannon 17750 | -3/Testing | Identified Cld. Nova Cannon 17849 | -3/Testing | Found Gamma Bomb Array 17922 | -3/Testing | First assault squad dispatched 18009 | -3/Testing | Destroyed 7 combat bots 18033 | -3/Testing | Identified exit to Research 18181 | -3/Testing | Entered Research 18181 | -2/Research | Evolved 2 slots: Power x1, Utility x1 18216 | -2/Research | Scrapoid reinforcements arrived 18223 | -2/Research | Garrison activated, responded to threat 18309 | -2/Research | Found Scrap Suit 18431 | -2/Research | First assault squad dispatched 18436 | -2/Research | Found Prototype Launcher 18436 | -2/Research | Identified Adv. Micro-nuke Launcher 18610 | -2/Research | Garrison activated, responded to threat 18613 | -2/Research | Identified Transdimensional Reconstructor 18613 | -2/Research | Warped through subspace 18709 | -2/Research | Identified exit to Garrison 18709 | -2/Research | Entered Garrison 18733 | -2/Garrison | Q-Series assembled to engage unique threat in Research 18760 | -2/Garrison | Spotted B-90 Cyclops 18779 | -2/Garrison | Destroyed B-90 Cyclops 18933 | -2/Garrison | Triggered checkpoint 18949 | -2/Garrison | Q-Series assembled to engage unique threat in Research 18950 | -2/Garrison | Lost 3 parts (1u2w) 19015 | -2/Garrison | Found Unknown Device 19015 | -2/Garrison | Identified Adv. Force Booster 19073 | -2/Garrison | Triggered checkpoint 19115 | -2/Garrison | Destroyed 10 combat bots 19229 | -2/Garrison | Triggered checkpoint 19361 | -2/Garrison | QS Assembler disabled 19378 | -2/Garrison | Found Prototype Launcher 19378 | -2/Garrison | Identified Com. Tesla Bomb Launcher 19383 | -2/Garrison | Found Prototype Device 19383 | -2/Garrison | Identified Exp. Shield Generator 19594 | -2/Garrison | Discovered new exit (range 10) 19614 | -2/Garrison | Attempted to access garrison exit controls, blocked by remote lockdown 19717 | -2/Garrison | Triggered checkpoint 19747 | -2/Garrison | Spotted B-90 Cyclops 19747 | -2/Garrison | Spotted B-90 Cyclops 19965 | -2/Garrison | Discovered new exit (range 8) 19974 | -2/Garrison | Learned Research security intel 20003 | -2/Garrison | Installed Relay Interface Framework 20027 | -2/Garrison | Entered Research 20084 | -2/Research | Identified exit to Garrison 20122 | -2/Research | Garrison activated, responded to threat 20127 | -2/Research | Spotted B-90 Cyclops 20149 | -2/Research | Entered Garrison 20172 | -2/Garrison | Spotted B-75 Beast 20175 | -2/Garrison | Spotted B-75 Beast 20182 | -2/Garrison | Rewired B-75 Beast 20189 | -2/Garrison | Destroyed B-75 Beast 20198 | -2/Garrison | Destroyed B-75 Beast 20372 | -2/Garrison | Spotted B-90 Cyclops 20405 | -2/Garrison | Destroyed B-90 Cyclops 20479 | -2/Garrison | Destroyed 8 combat bots 20497 | -2/Garrison | Triggered checkpoint 20499 | -2/Garrison | Triggered checkpoint 20499 | -2/Garrison | Triggered checkpoint 20548 | -2/Garrison | Destroyed 7 combat bots 20630 | -2/Garrison | Discovered new exit (range 58) 20630 | -2/Garrison | Discovered new exit (range 61) 20630 | -2/Garrison | Discovered new exit (range 26) 20736 | -2/Garrison | Rescued a captive Derelict 20782 | -2/Garrison | Garrison Relay disabled 20826 | -2/Garrison | Entered Access 20826 | -1/Access | Accompanied by 1 ally 20826 | -1/Access | Evolved 2 slots: Utility x1, Weapon x1 20827 | -1/Access | Identified exit to Command 21076 | -1/Access | First assault squad dispatched 21139 | -1/Access | Build established: Scavenger-Gunner 21154 | -1/Access | High security lockdown imminent 21203 | -1/Access | Destroyed 10 combat bots 21218 | -1/Access | Spotted B-99 Colossus 21234 | -1/Access | High security lockdown engaged 21289 | -1/Access | Entered Command 21308 | -1/Command | Lost 4 parts (3p1u) 21521 | -1/Command | P-80 Master assimilated allied M-36 Artificer 21539 | -1/Command | First assault squad dispatched 21565 | -1/Command | Identified exit to Surface 22284 | -1/Command | Scrapoids reinforcements arrived? 22359 | -1/Command | Found Scrap Suit 22376 | -1/Command | Found Scrap Suit 22533 | -1/Command | Scrapoid reinforcements arrived 22594 | -1/Command | Spotted Alpha 7 22596 | -1/Command | Spotted Alpha 7 22604 | -1/Command | Allies destroyed Alpha 7 22615 | -1/Command | Destroyed Alpha 7 22646 | -1/Command | Lost 3 allies 22664 | -1/Command | Found Prototype Ballistic Gun 22687 | -1/Command | Found Prototype Device 22687 | -1/Command | Identified Exp. ECM Suite 22794 | -1/Command | Identified Multirail 22955 | -1/Command | Spotted M Guard 22955 | -1/Command | Spotted M Guard 22956 | -1/Command | Spotted Combat Programmer 22956 | -1/Command | Spotted Combat Programmer 22978 | -1/Command | System corruption reached 10% 22991 | -1/Command | Allies destroyed Combat Programmer 23004 | -1/Command | Destroyed Combat Programmer 23044 | -1/Command | Destroyed M Guard 23060 | -1/Command | Lost 4 allies 23116 | -1/Command | System corruption reached 30% 23163 | -1/Command | Spotted Striker 23163 | -1/Command | Spotted Striker 23163 | -1/Command | Spotted Executioner 23163 | -1/Command | Spotted Executioner 23163 | -1/Command | Spotted Executioner 23163 | -1/Command | Spotted Executioner 23164 | -1/Command | Spotted B-99 Colossus 23173 | -1/Command | Core integrity fell below 50% 23173 | -1/Command | Spotted B-99 Colossus 23177 | -1/Command | Core integrity fell below 20% 23180 | -1/Command | Destroyed by Executioner with Helical Railgun Last Messages --------------- 23176_ Knocked back. 23176_ Penetrated by Slug. 23176_ Slug penetrates Striker. 23176_ Striker destroyed. 23176_ Penetrated by Slug. 23176_ Slug penetrates Wall. 23176_ Penetrated by Slug. 23176_ Slug penetrates Wall. 23177_ Knocked back. 23177_ Slug penetrates Wall. 23177_ Acquired 5 matter. 23177_ Triggered Stasis Trap. 23177_ A bubble of rippling energy engulfs the area. 23177_ Field strength at 94. 23178_ Field strength at 88. 23179_ Wall collapses. 23179_ Field strength at 58. 23179_ Penetrated by Slug. 23179_ Field strength at 29. 23180_ Penetrated by Slug. Map ----- +----------------------------------------------------+ | ?????????????????????????????????????????????????? | | ?????????????????????????????????????????????????? | | ?????????????????????????????????????????????????? | | ?????????????????????????????????????????????????? | | ?????????????????????????????????????????????????? | | ?????????????????? ??????????????????????????????? | | ?????????????????? ??????????????????????????????? | | ?????????????????? ??????????????????????????????? | | ?????????????????# ??????????????????????????????? | | ?????????????????# ??????????????????????????????? | | ?????????????????# ??????????????????????????????? | | ?????????????????# ??????????????????????????????? | | ?????????????????# ??????????????????????????????? | | ?????????????????# ??????????????????????????????? | | ?????????????????# ??????????????????????????????? | | ?????????????????# ??????????????????????????????? | | ?????????????????# #?????????????????????????????? | | ?????????????????# #?????????????????????????????? | | ?????????????????+ #???###?######?#? ????????? | | ?????????????????# #####;## # # # #BB ????????? | | ?????????????????# ##;;#; K E E ^BB "??????????? | | ?????????????????# %%!/ ^ "??????????? | | ###+############?# !/*^ "??